lending/lending_fUSD_20260119
["ID","MTS","AMOUNT","RATE_DAILY","PERIOD"]
[402698089,1768805640693,-453.23952051,0.00043076,120]
[402698090,1768805640741,-500.0,0.00043076,120]
[402698091,1768805640788,-500.0,0.00043076,120]
[402698092,1768805640835,-500.0,0.00043076,120]
[402698093,1768805640882,-500.0,0.00043076,120]
[402698094,1768805640935,-500.07888685,0.00043076,120]
[402698095,1768805640984,-393.40786207,0.00043076,60]
[402698096,1768805641031,-1948.16694884,0.00043076,120]
[402698097,1768805641078,-508.44627073,0.00043076,120]
[402698098,1768805641127,-500.0,0.00043076,60]
[402698099,1768805641176,-500.0,0.00043076,120]
[402698100,1768805641226,-259.83,0.00043076,120]
[402698101,1768805641274,-171.63395401,0.00043076,120]
[402698102,1768805641321,-500.0,0.00043076,120]
[402698103,1768805641370,-500.0,0.00043076,120]
[402698104,1768805641417,-500.0,0.00043076,120]
[402698105,1768805641467,-500.0,0.00043076,120]
[402698107,1768805641515,-500.0,0.00043076,120]
[402698108,1768805641563,-464770.786409,0.00043076,30]
[402698109,1768805662027,-245.16779306,0.00015514,2]
[402698110,1768805662037,-116.30006928,0.00015534,2]
[402698111,1768805662084,-143.12993072,0.00015534,2]
[402698112,1768805662094,-250.0,0.00015555,2]
[402698113,1768805662104,-165.145457,0.00015555,2]
[402698114,1768805663291,-2008.95009054,0.00015555,2]
[402698115,1768805663303,-308.10785654,0.00015555,2]
[402698116,1768805663313,-176.231,0.00015555,2]
[402698117,1768805663322,-259.43,0.00015574,2]
[402698118,1768805663332,-259.43,0.00015615,2]
[402698119,1768805663341,-259.43,0.00015655,2]
[402698120,1768805663351,-259.43,0.00015695,2]
[402698121,1768805663360,-259.43,0.00015735,2]
[402698122,1768805663369,-246.64561891,0.00015738,2]
[402698123,1768805663378,-18022.45108713,0.00015773,2]
[402698124,1768805663390,-2633.86570211,0.00015773,2]
[402698125,1768805663408,-686.1559508,0.00015773,2]
[402698126,1768805663419,-721.93513309,0.00015773,2]
[402698127,1768805663430,-538.63918528,0.00015773,2]
[402698128,1768805663462,-1893.48,0.00015773,2]
[402698129,1768805663474,-18755.28622953,0.00015773,2]
[402698130,1768805663484,-587.90912472,0.00015773,2]
[402698131,1768805663499,-1089.81245063,0.00015773,2]
[402698132,1768805663784,-277728.4762805,0.00015773,2]
[402698133,1768805663796,-377.598,0.00015773,2]
[402698134,1768805663827,-442.2986497,0.00015773,2]
[402698135,1768805663837,-1336.90675277,0.00015773,2]
[402698136,1768805663849,-295184.95755374,0.00015773,2]
[402698137,1768805663859,-259.43,0.00015775,2]
[402698138,1768805663868,-1174.61816721,0.00015796,2]
[402698139,1768805663878,-259.43,0.00015815,2]
[402698140,1768805663888,-978.0,0.00015826,2]
[402698141,1768805663897,-166.66,0.00015827,2]
[402698142,1768805663907,-259.43,0.00015855,2]
[402698143,1768805663921,-1339.53451941,0.00015863,2]
[402698144,1768805663930,-500.0,0.00015863,2]
[402698145,1768805663939,-500.0,0.00015872,2]
[402698146,1768805663948,-500.0,0.00015872,2]
[402698147,1768805663959,-500.0,0.00015872,2]
[402698148,1768805663968,-500.0,0.00015872,2]
[402698149,1768805663977,-500.0,0.00015872,2]
[402698150,1768805663987,-500.0,0.00015872,2]
[402698151,1768805663996,-322.37422063,0.00015872,2]
[402698152,1768805664005,-500.0,0.00015872,2]
[402698153,1768805664015,-500.0,0.00015872,2]
[402698154,1768805664025,-500.0,0.00015872,2]
[402698155,1768805664035,-500.0,0.00015872,2]
[402698156,1768805664045,-500.0,0.00015872,2]
[402698157,1768805664054,-500.0,0.00015872,2]
[402698158,1768805664064,-500.0,0.00015872,2]
[402698159,1768805664073,-500.0,0.00015872,2]
[402698160,1768805664083,-500.0,0.00015872,2]
[402698161,1768805664092,-500.0,0.00015872,2]
[402698162,1768805664103,-259.43,0.00015896,2]
[402698163,1768805664112,-1000.0,0.000159,2]
[402698164,1768805664121,-259.43,0.00015936,2]
[402698165,1768805664130,-150.99,0.00015973,2]
[402698166,1768805664140,-9999.99,0.00015973,2]
[402698167,1768805664149,-215.04128154,0.00015973,2]
[402698168,1768805664158,-259.43,0.00015976,2]
[402698169,1768805664167,-259.43,0.00016016,2]
[402698170,1768805664177,-1174.61816721,0.0001603,2]
[402698171,1768805664187,-166.66,0.00016146,2]
[402698172,1768805664196,-150.0,0.000162,2]
[402698173,1768805664205,-150.0,0.000162,2]
[402698174,1768805664215,-150.0,0.000162,2]
[402698175,1768805664224,-150.0,0.000162,2]
[402698176,1768805664234,-150.0,0.000162,2]
[402698177,1768805664243,-150.0,0.000162,2]
[402698178,1768805664253,-151.99077629,0.000162,2]
[402698179,1768805664262,-150.0,0.000162,2]
[402698180,1768805664271,-151.40371852,0.000162,2]
[402698181,1768805664281,-150.0,0.000162,2]
[402698182,1768805664291,-4603.45,0.00016229,2]
[402698183,1768805664300,-1000.0,0.00016235,2]
[402698184,1768805664309,-1174.61816721,0.00016264,2]
[402698185,1768805664319,-1872.48,0.00016271,2]
[402698186,1768805664328,-1820.45,0.00016284,2]
[402698187,1768805664338,-500.0,0.00016336,2]
[402698188,1768805664346,-499.99999983,0.00016336,2]
[402698189,1768805664355,-500.0,0.00016336,2]
[402698190,1768805664364,-500.0,0.00016336,2]
[402698191,1768805664373,-455.72018722,0.00016336,2]
[402698192,1768805664383,-500.0,0.00016336,2]
[402698193,1768805664392,-500.0,0.00016336,2]
[402698194,1768805664401,-500.0,0.00016336,2]
[402698195,1768805664411,-500.0,0.00016336,2]
[402698196,1768805664420,-500.0,0.00016336,2]
[402698197,1768805664429,-500.0,0.00016336,2]
[402698198,1768805664439,-160.31433437,0.00016336,2]
[402698199,1768805664448,-500.0,0.00016336,2]
[402698200,1768805664458,-500.0,0.00016336,2]
[402698201,1768805664467,-198.58095138,0.00016336,2]
[402698202,1768805664476,-500.0,0.00016336,2]
[402698203,1768805664485,-500.0,0.00016336,2]
[402698204,1768805664495,-500.0,0.00016336,2]
[402698205,1768805664504,-500.0,0.00016336,2]
[402698206,1768805664514,-500.0,0.00016336,2]
[402698207,1768805664524,-500.0,0.00016336,2]
[402698208,1768805664533,-500.0,0.00016336,2]
[402698209,1768805664542,-500.0,0.00016336,2]
[402698210,1768805664552,-500.0,0.00016336,2]
[402698211,1768805664561,-500.0,0.00016336,2]
[402698212,1768805664570,-500.0,0.00016336,2]
[402698213,1768805664580,-500.0,0.00016336,2]
[402698214,1768805664589,-171.87,0.00016356,2]
[402698215,1768805664598,-557.83,0.00016356,2]
[402698216,1768805664607,-179.62,0.00016356,2]
[402698217,1768805664616,-179.62,0.00016356,2]
[402698218,1768805664626,-171.87,0.00016356,2]
[402698219,1768805664635,-171.87,0.00016356,2]
[402698220,1768805664646,-179.62,0.00016356,2]
[402698221,1768805664655,-171.87,0.00016356,2]
[402698222,1768805664675,-832.11,0.00016356,2]
[402698223,1768805664694,-179.62,0.00016356,2]
[402698224,1768805664708,-179.62,0.00016356,2]
[402698225,1768805664725,-557.83,0.00016356,2]
[402698226,1768805664742,-171.87,0.00016356,2]
[402698227,1768805664759,-557.83,0.00016356,2]
[402698228,1768805664772,-171.87,0.00016356,2]
[402698229,1768805664789,-179.62,0.00016356,2]
[402698230,1768805664807,-188.1293202,0.000164,2]
[402698231,1768805664823,-150.0,0.00016425,2]
[402698232,1768805664842,-500.0,0.00016437,2]
[402698233,1768805664860,-318.85334381,0.00016437,2]
[402698234,1768805664878,-369.91760368,0.00016437,2]
[402698235,1768805664892,-500.0,0.00016437,2]
[402698236,1768805664911,-1168.58,0.00016438,2]
[402698237,1768805664927,-1168.58,0.00016438,2]
[402698238,1768805664941,-1168.58,0.00016438,2]
[402698239,1768805664955,-1168.58,0.00016438,2]
[402698240,1768805664973,-1168.58,0.00016438,2]
[402698241,1768805664984,-1168.58,0.00016438,2]
[402698242,1768805664998,-1168.58,0.00016438,2]
[402698243,1768805665015,-1168.58,0.00016438,2]
[402698244,1768805665026,-1168.58,0.00016438,2]
[402698245,1768805665041,-1168.58,0.00016438,2]
[402698246,1768805665054,-1168.58,0.00016438,2]
[402698247,1768805665072,-1168.58,0.00016438,2]
[402698248,1768805665085,-1168.58,0.00016438,2]
[402698249,1768805665100,-1168.58,0.00016438,2]
[402698250,1768805665114,-1168.58,0.00016438,2]
[402698251,1768805665129,-1168.58,0.00016438,2]
[402698252,1768805665143,-1168.58,0.00016438,2]
[402698253,1768805665157,-1168.58,0.00016438,2]
[402698254,1768805665170,-1168.58,0.00016438,2]
[402698255,1768805665185,-1168.58,0.00016438,2]
[402698256,1768805665199,-1168.58,0.00016438,2]
[402698257,1768805665213,-1168.58,0.00016438,2]
[402698258,1768805665227,-1168.58,0.00016438,2]
[402698259,1768805665243,-1168.68360185,0.00016438,2]
[402698260,1768805665257,-500.0,0.00016438,2]
[402698261,1768805665271,-500.0,0.00016438,2]
[402698262,1768805665285,-500.0,0.00016438,2]
[402698263,1768805665299,-302.13568376,0.00016438,2]
[402698264,1768805665313,-500.0,0.00016438,2]
[402698265,1768805665327,-500.0,0.00016438,2]
[402698266,1768805665341,-500.0,0.00016438,2]
[402698267,1768805665355,-500.0,0.00016438,2]
[402698268,1768805665369,-500.0,0.00016438,2]
[402698269,1768805665382,-500.0,0.00016438,2]
[402698270,1768805665395,-500.0,0.00016438,2]
[402698271,1768805665409,-500.0,0.00016438,2]
[402698272,1768805665422,-500.0,0.00016438,2]
[402698273,1768805665436,-500.0,0.00016438,2]
[402698274,1768805665450,-500.0,0.00016438,2]
[402698275,1768805665464,-500.0,0.00016438,2]
[402698276,1768805665476,-500.0,0.00016438,2]
[402698277,1768805665489,-500.0,0.00016438,2]
[402698278,1768805665502,-500.0,0.00016438,2]
[402698279,1768805665515,-500.0,0.00016438,2]
[402698280,1768805665529,-500.0,0.00016438,2]
[402698281,1768805665541,-500.0,0.00016438,2]
[402698282,1768805665554,-499.99999999,0.00016438,2]
[402698283,1768805665567,-603.26732736,0.00016438,2]
[402698284,1768805665580,-301.40535093,0.00016438,2]
[402698285,1768805665593,-665.85,0.0001645,2]
[402698286,1768805665605,-166.66,0.00016466,2]
[402698287,1768805665618,-3240.0,0.00016482,2]
[402698288,1768805665631,-151.0,0.00016486,2]
[402698289,1768805665647,-150.0,0.00016489,2]
[402698290,1768805665661,-1174.61816721,0.00016497,2]
[402698291,1768805665674,-151.0,0.000165,2]
[402698292,1768805665687,-1264.0,0.000165,2]
[402698293,1768805665700,-1264.0,0.000165,2]
[402698294,1768805665712,-151.0,0.000165,2]
[402698295,1768805665725,-165.11,0.00016501,2]
[402698296,1768805665738,-150.0,0.0001665,2]
[402698297,1768805665750,-188.12932016,0.0001665,2]
[402698298,1768805665764,-694.416276,0.00016692,2]
[402698299,1768805665776,-322.6107,0.00016692,2]
[402698300,1768805665789,-620.0,0.00016692,2]
[402698301,1768805665802,-721.12765535,0.00016692,2]
[402698302,1768805665814,-166.46,0.00016712,2]
[402698303,1768805665827,-1174.61816721,0.00016731,2]
[402698304,1768805665839,-151.0,0.00016735,2]
[402698305,1768805665852,-151.0,0.00016735,2]
[402698306,1768805665864,-151.0,0.00016735,2]
[402698307,1768805665876,-151.0,0.00016735,2]
[402698308,1768805665888,-151.0,0.00016735,2]
[402698309,1768805665900,-151.0,0.00016735,2]
[402698310,1768805665916,-166.66,0.00016786,2]
[402698311,1768805665928,-1000.0,0.00016844,2]
[402698312,1768805665940,-150.0,0.00016875,2]
[402698313,1768805665951,-188.12932016,0.000169,2]
[402698314,1768805665962,-1174.61816721,0.00016965,2]
[402698315,1768805665974,-200.0,0.00016983,2]
[402698316,1768805665984,-250.0,0.00017,2]
[402698317,1768805665998,-250.0,0.00017044,2]
[402698318,1768805666009,-150.0,0.000171,2]
[402698319,1768805666021,-188.12932016,0.0001715,2]
[402698320,1768805666032,-557.83,0.00017178,2]
[402698321,1768805666045,-557.83,0.00017178,2]
[402698322,1768805666057,-198.09,0.00017178,2]
[402698323,1768805666069,-557.83,0.00017178,2]
[402698324,1768805666081,-171.87,0.00017178,2]
[402698325,1768805666094,-300.0,0.00017178,2]
[402698326,1768805666106,-171.87,0.00017178,2]
[402698327,1768805666119,-153.9,0.00017178,2]
[402698328,1768805666130,-150.0,0.00017178,2]
[402698329,1768805666143,-1185.08,0.00017178,2]
[402698330,1768805666155,-150.0,0.00017178,2]
[402698331,1768805666167,-176.36,0.00017178,2]
[402698332,1768805666180,-2457.86,0.00017178,2]
[402698333,1768805666191,-150.0,0.00017178,2]
[402698334,1768805666203,-150.0,0.00017178,2]
[402698335,1768805666216,-150.0,0.00017178,2]
[402698336,1768805666228,-150.0,0.00017178,2]
[402698337,1768805666241,-150.0,0.00017178,2]
[402698338,1768805666253,-1228.93,0.00017178,2]
[402698339,1768805666265,-300.0,0.00017178,2]
[402698340,1768805666276,-150.0,0.00017178,2]
[402698341,1768805666289,-150.0,0.00017178,2]
[402698342,1768805666302,-557.83,0.00017178,2]
[402698343,1768805666314,-557.83,0.00017178,2]
[402698344,1768805666326,-1174.61816721,0.00017199,2]
[402698345,1768805666338,-1000.0,0.0001726,2]
[402698346,1768805666349,-150.0,0.00017325,2]
[402698347,1768805666361,-188.12932016,0.000174,2]
[402698348,1768805666372,-3478.0,0.00017404,2]
[402698349,1768805666384,-1174.61816721,0.00017432,2]
[402698350,1768805666396,-1000.0,0.00017453,2]
[402698351,1768805666409,-2000.0,0.000175,2]
[402698352,1768805666421,-1579.0,0.00017507,2]
[402698353,1768805666434,-2228.0,0.00017509,2]
[402698354,1768805666448,-155.93842872,0.00017509,2]
[402698355,1768805666458,-437.5,0.00017525,2]
[402698356,1768805666467,-3478.0,0.00017533,2]
[402698357,1768805666477,-5318.9047655,0.00017534,2]
[402698358,1768805666486,-1000.0,0.00017534,2]
[402698359,1768805666496,-150.0,0.0001755,2]
[402698360,1768805666505,-200.0,0.00017565,3]
[402698361,1768805666515,-437.5,0.00017568,2]
[402698362,1768805666524,-437.5,0.00017611,2]
[402698363,1768805666533,-188.12932016,0.0001765,2]
[402698364,1768805666542,-437.5,0.00017655,2]
[402698365,1768805666551,-1174.61816721,0.00017666,2]
[402698366,1768805666560,-1579.0,0.00017677,2]
[402698367,1768805666569,-2228.0,0.00017689,2]
[402698368,1768805666578,-437.5,0.00017698,2]
[402698369,1768805666588,-1000.0,0.000177,2]
[402698370,1768805666597,-200.0,0.00017706,2]
[402698371,1768805666607,-150.0,0.00017723,2]
[402698372,1768805666616,-150.0,0.00017723,2]
[402698373,1768805666625,-500.0,0.00017723,2]
[402698374,1768805666634,-255.80435828,0.00017723,2]
[402698375,1768805666645,-500.0,0.00017723,2]
[402698376,1768805666656,-150.0,0.00017723,2]
[402698377,1768805666667,-278.41956791,0.00017723,2]
[402698378,1768805666677,-500.0,0.00017723,2]
[402698379,1768805666686,-212.75413196,0.00017723,2]
[402698380,1768805666695,-150.0,0.00017723,2]
[402698381,1768805666704,-242.91332751,0.00017723,2]
[402698382,1768805666713,-234.84703135,0.00017723,2]
[402698383,1768805666723,-500.0,0.00017723,2]
[402698384,1768805666732,-500.0,0.00017723,2]
[402698385,1768805666741,-150.0,0.00017723,2]
[402698386,1768805666750,-150.0,0.00017723,2]
[402698387,1768805666760,-500.0,0.00017723,2]
[402698388,1768805666769,-150.0,0.00017723,2]
[402698389,1768805666778,-500.0,0.00017723,2]
[402698390,1768805666787,-150.0,0.00017723,2]
[402698391,1768805666797,-150.0,0.00017723,2]
[402698392,1768805666806,-500.0,0.00017726,2]
[402698393,1768805666816,-3478.0,0.00017739,2]
[402698394,1768805666825,-437.5,0.00017741,2]
[402698395,1768805666835,-1579.0,0.00017745,2]
[402698396,1768805666844,-750.0,0.00017749,2]
[402698397,1768805666855,-500.0,0.00017752,2]
[402698398,1768805666865,-1579.0,0.00017755,2]
[402698399,1768805666874,-1000.0,0.00017762,2]
[402698400,1768805666884,-150.0,0.00017775,2]
[402698401,1768805666894,-500.0,0.00017778,2]
[402698402,1768805666903,-500.0,0.00017778,2]
[402698403,1768805666917,-150.0,0.00017778,2]
[402698404,1768805666928,-500.0,0.00017778,2]
[402698405,1768805666939,-229.99704152,0.00017778,2]
[402698406,1768805666951,-150.0,0.00017778,2]
[402698407,1768805666963,-500.0,0.00017778,2]
[402698408,1768805666973,-500.0,0.00017778,2]
[402698409,1768805666984,-150.0,0.00017778,2]
[402698410,1768805666994,-150.0,0.00017778,2]
[402698411,1768805667003,-500.0,0.00017778,2]
[402698412,1768805667013,-500.0,0.00017778,2]
[402698413,1768805667023,-150.0,0.00017778,2]
[402698414,1768805667033,-437.5,0.00017784,2]
[402698415,1768805667044,-750.0,0.00017785,2]
[402698416,1768805667055,-750.0,0.00017795,2]
[402698417,1768805667065,-1000.0,0.000178,2]
[402698418,1768805667075,-750.0,0.00017808,2]
[402698419,1768805667085,-1000.0,0.00017808,2]
[402698420,1768805667094,-151.0,0.00017808,2]
[402698421,1768805667104,-156.587,0.00017808,2]
[402698422,1768805667114,-312.4046,0.0001782,2]
[402698423,1768805667124,-312.4046,0.0001782,2]
[402698424,1768805667134,-1000.0,0.00017825,2]
[402698425,1768805667145,-437.5,0.00017827,2]
[402698426,1768805667154,-500.0,0.00017833,2]
[402698427,1768805667164,-500.0,0.00017833,2]
[402698428,1768805667173,-150.0,0.00017833,2]
[402698429,1768805667183,-500.0,0.00017833,2]
[402698430,1768805667192,-150.0,0.00017833,2]
[402698431,1768805667203,-500.0,0.00017833,2]
[402698432,1768805667215,-351.65720037,0.00017833,2]
[402698433,1768805667225,-150.0,0.00017833,2]
[402698434,1768805667235,-265.41416661,0.00017833,2]
[402698435,1768805667245,-350.0,0.00017833,2]
[402698436,1768805667255,-500.0,0.00017833,2]
[402698437,1768805667264,-200.0,0.00017833,2]
[402698438,1768805667274,-200.0,0.00017856,2]
[402698439,1768805667283,-1000.0,0.00017869,2]
[402698440,1768805667293,-1000.0,0.00017869,2]
[402698441,1768805667302,-276.00580472,0.00017869,2]
[402698442,1768805667312,-486.90695553,0.00017869,2]
[402698443,1768805667322,-728.38368549,0.00017869,2]
[402698444,1768805667332,-985.5252,0.00017869,2]
[402698445,1768805667341,-2228.0,0.0001787,2]
[402698446,1768805667351,-437.5,0.0001787,2]
[402698447,1768805667360,-1186.8080721,0.00017878,2]
[402698448,1768805667369,-750.0,0.00017886,2]
[402698449,1768805668096,-500.0,0.00017887,2]
[402698450,1768805668117,-160.2774242,0.00017887,2]
[402698451,1768805668147,-150.0,0.00017887,2]
[402698452,1768805668172,-500.0,0.00017887,2]
[402698453,1768805668192,-150.0,0.00017887,2]
[402698454,1768805668202,-500.0,0.00017887,2]
[402698455,1768805668211,-150.0,0.00017887,2]
[402698456,1768805668221,-500.0,0.00017887,2]
[402698457,1768805668230,-750.0,0.0001789,2]
[402698458,1768805668239,-1579.0,0.00017893,2]
[402698459,1768805668249,-1000.0,0.00017897,2]
[402698460,1768805668258,-188.12932016,0.000179,2]
[402698461,1768805668268,-488.64907529,0.000179,2]
[402698462,1768805668277,-488.64907529,0.000179,2]
[402698463,1768805668286,-488.64907529,0.000179,2]
[402698464,1768805668296,-488.64907529,0.000179,2]
[402698465,1768805668306,-488.64907529,0.000179,2]
[402698466,1768805668315,-488.64907529,0.000179,2]
[402698467,1768805668324,-1174.61816721,0.000179,2]
[402698468,1768805668334,-488.64907529,0.000179,2]
[402698469,1768805668344,-488.64907529,0.000179,2]
[402698470,1768805668354,-1000.0,0.000179,2]
[402698471,1768805668364,-488.64907529,0.000179,2]
[402698472,1768805668373,-488.64907529,0.000179,2]
[402698473,1768805668383,-488.64907529,0.000179,2]
[402698474,1768805668393,-488.64907529,0.000179,2]
[402698475,1768805668403,-488.64907529,0.000179,2]
[402698476,1768805668412,-488.64907529,0.000179,2]
[402698477,1768805668422,-488.64907529,0.000179,2]
[402698478,1768805668431,-5067.0,0.000179,2]
[402698479,1768805668441,-437.5,0.00017914,2]
[402698480,1768805668450,-1000.0,0.00017935,2]
[402698481,1768805668460,-500.0,0.00017942,2]
[402698482,1768805668469,-150.0,0.00017942,2]
[402698483,1768805668479,-500.0,0.00017942,2]
[402698484,1768805668488,-218.969955,0.00017942,2]
[402698485,1768805668497,-500.0,0.00017942,2]
[402698486,1768805668506,-250.0,0.00017942,2]
[402698487,1768805668515,-500.0,0.00017942,2]
[402698488,1768805668524,-768.18857925,0.00017951,2]
[402698489,1768805668533,-150.0,0.00017955,2]
[402698490,1768805668542,-437.5,0.00017957,2]
[402698491,1768805668551,-150.0,0.00017969,2]
[402698492,1768805668561,-1000.0,0.0001797,2]
[402698493,1768805668570,-150.0,0.00017973,2]
[402698494,1768805668580,-150.0,0.00017973,2]
[402698495,1768805668589,-4926.233724,0.00017992,2]
[402698496,1768805668598,-8382.1327467,0.00017992,2]
[402698497,1768805668609,-5866.7765058,0.00017993,2]
[402698498,1768805668619,-500.0,0.00017996,2]
[402698499,1768805668630,-1000.0,0.00017996,2]
[402698500,1768805668640,-500.0,0.00017997,2]
[402698501,1768805668650,-175.79840012,0.00017997,2]
[402698502,1768805668659,-500.0,0.00017997,2]
[402698503,1768805668668,-343.5782586,0.00017997,2]
[402698504,1768805668677,-500.0,0.00017997,2]
[402698505,1768805668687,-273.37216688,0.00017999,2]
[402698506,1768805668697,-500.0,0.00017999,2]
[402698507,1768805668708,-500.0,0.00017999,2]
[402698508,1768805668717,-500.0,0.00017999,2]
[402698509,1768805668728,-500.0,0.00017999,2]
[402698510,1768805668738,-500.0,0.00017999,2]
[402698511,1768805668747,-500.0,0.00017999,2]
[402698512,1768805668757,-500.0,0.00017999,2]
[402698513,1768805668766,-500.0,0.00017999,2]
[402698514,1768805668776,-500.0,0.00017999,2]
[402698515,1768805668786,-500.0,0.00017999,2]
[402698516,1768805668795,-500.0,0.00017999,2]
[402698517,1768805668805,-308.39347931,0.00017999,2]
[402698518,1768805668817,-313.05427183,0.00017999,2]
[402698519,1768805668827,-430.4729306,0.00017999,2]
[402698520,1768805668836,-300.0,0.00017999,2]
[402698521,1768805668846,-666.0,0.00017999,2]
[402698522,1768805668856,-150.00000001,0.00018,2]
[402698523,1768805668865,-150.0,0.00018,2]
[402698524,1768805668874,-282.35639206,0.00018,2]
[402698525,1768805668883,-150.0,0.00018,2]
[402698526,1768805668892,-150.0,0.00018,2]
[402698527,1768805668903,-173.75067001,0.00018,2]
[402698528,1768805668914,-536701.37001124,0.00018,2]
[402698529,1768805668925,-2011.56,0.00018,2]
[402698530,1768805668934,-913.05,0.00018,7]
[402698531,1768805668943,-618.59691968,0.00018,2]
[402698532,1768805668954,-1245412.3314373,0.00018,2]
[402698533,1768805669411,-1621.65531275,0.00018,2]
[402698534,1768805670106,-0.00566781,0.00018,2]
[402698535,1768805670138,-16007.49609485,0.00018,2]
[402698536,1768805670150,-887.85354572,0.00018,2]
[402698537,1768805670207,-733.21251931,0.00018,2]
[402698538,1768805670218,-1485.63999996,0.00018,2]
[402698539,1768805671464,1974.627053,0.00015436,2]
[402698540,1768805676494,1852.42,0.00014852,2]
[402698541,1768805685857,1500.0,0.00014823,2]
[402698542,1768805688234,392.03,0.00014807,2]
[402698543,1768805694638,4912.9165623,0.00014807,2]
[402698544,1768805697597,202.94379986,0.00014807,2]
[402698545,1768805702543,1690.3277464,0.00027397,120]
[402698546,1768805723036,1600.0,0.00025045,120]
[402698573,1768806094712,2249.88,0.00015457,2]
[402698574,1768806094797,176.232,0.00015457,2]
[402698575,1768806095590,-276.0,0.00015573,2]
[402698576,1768806095616,-304.88377365,0.00015573,2]
[402698577,1768806098724,-250.0,0.00015573,2]
[402698578,1768806104216,-359.14456207,0.00015573,2]
[402698579,1768806105791,-209.97166445,0.00015573,2]
[402698580,1768806107862,-75.99999983,0.00015573,2]
[402698581,1768806107887,-119.00000017,0.00015573,2]
[402698582,1768806109829,-180.99999983,0.00015573,2]
[402698583,1768806109853,-116.01454472,0.00015574,2]
[402698584,1768806114184,-133.98545528,0.00015574,2]
[402698585,1768806114209,-75.0107978,0.00015574,2]
[402698586,1768806117875,-294.15545545,0.00015574,2]
[402698587,1768806181202,-369.18625325,0.00015574,2]
[402698588,1768806184229,-738.3725065,0.00015574,2]
[402698589,1768806187300,-1476.745013,0.00015574,2]
[402698590,1768806200515,999.0,0.00027397,120]
[402698592,1768806291022,-200.0,0.00015732,2]
[402698593,1768806291047,-23.17747784,0.00015745,2]
[402698594,1768806295448,-181.06434797,0.00015745,2]
[402698595,1768806298742,-161.12,0.00015732,2]
[402698596,1768806298764,-184.41271284,0.00015745,2]
[402698597,1768806301944,-302.38584857,0.00015745,2]
[402698598,1768806304703,-302.77664069,0.00015745,2]
[402698599,1768806307297,-311.75047369,0.00015745,2]
[402698600,1768806310946,-236.08913909,0.00015745,2]
[402698607,1768806460218,1161.01,0.00027397,120]
[402698608,1768806485957,-318.22475805,0.00015628,2]
[402698609,1768806492137,-215.14510851,0.00015628,2]
[402698610,1768806494754,-468.10761632,0.00015628,2]
[402698612,1768806497893,-239.94323217,0.00015628,2]
[402698613,1768806503076,-230.15741242,0.00015628,2]
[402698614,1768806505721,-228.46088989,0.00015628,2]
[402698615,1768806507285,-210.05676783,0.00015628,2]
[402698616,1768806511091,-222.07799881,0.00015628,2]
[402698618,1768806513930,-176.0904459,0.00015628,2]
[402698619,1768806516498,-341.0058,0.00015475,2]
[402698620,1768806516523,-5.20542746,0.00015628,2]
[402698622,1768806520279,-209.78581975,0.00015628,2]
[402698623,1768806524068,-203.45020466,0.00015628,2]
[402698624,1768806528875,-227.87507243,0.00015628,2]
[402698625,1768806533603,-151.21241997,0.00015628,2]